Cogmind - Beta 13 @@@ ROGUE MODE // 2024.04.26 @ 16:58:24 Player: Aeon PSR Result: Self-destructed Performance ------------- Evolutions (2) 1000 Regions Visited (4) 800 Robots Destroyed (25) 125 Value Destroyed (778) 778 Prototype IDs (0) 0 Alien Tech Used (0) 0 Bonus (0) 0 TOTAL SCORE: 2703 Bonus ------- None Cogmind --------- Core Integrity 206/550 Matter 122/300 Energy 262/265 System Corruption 0% Temperature Cool (74) Movement Core (650) Ox12 Location -8/Materials Parts ------- > --- POWER (1) -------- Improved Ion Engine > --- PROPULSION (2) --- (None) > --- UTILITY (6) ------ Large Storage Unit Core Shielding Field Recycling Unit > --- WEAPON (2) ------- EM Shotgun > --- INVENTORY (15) --- Improved Ion Engine Armored Wheel EM Shotgun Light Assault Rifle Heavy Assault Rifle EMP Blaster Mining Laser Peak State ------------ > --- POWER ------------ Improved Ion Engine > --- PROPULSION ------- Wheel Armored Wheel > --- UTILITY ---------- Large Storage Unit Sensor Array Signal Interpreter Particle Charger Light Armor Plating Medium Armor Plating > --- WEAPON ----------- Assault Rifle Enhanced Flamer > --- INVENTORY -------- Improved Ion Engine Improved Ion Engine Wheel Wheel Core Shielding Field Recycling Unit EM Shotgun EM Shotgun Assault Rifle Light Assault Rifle Heavy Assault Rifle EMP Blaster Rocket Launcher Mining Laser [Rating: 20] Favorites ----------- Power Improved Ion Engine Engine Improved Ion Engine Propulsion Wheel Wheel Wheel Utility Large Storage Unit Device Sensor Array Storage Large Storage Unit Processor Signal Interpreter Protection Light Armor Plating Weapon Assault Rifle Energy Gun EM Shotgun Ballistic Gun Assault Rifle Launcher EMP Blaster Special Weapon Enhanced Flamer Build | -11 -10 -9 -9 -8 ------- Run | Yrd Mat Mat Min Mat Slots Evolved 4 | . . 2 . 2 Power . | . . . . . Propulsion . | . . . . . Utility 4 | . . 2 . 2 Weapon . | . . . . . Parts Attached 34 | 6 3 12 1 12 Power 4 | 1 1 1 . 1 Engine 4 | 1 1 1 . 1 Core . | . . . . . Reactor . | . . . . . Propulsion 6 | 2 . 2 . 2 Treads . | . . . . . Leg . | . . . . . Wheel 6 | 2 . 2 . 2 Hover . | . . . . . Flight . | . . . . . Utility 13 | . 2 6 1 4 Device 4 | . 1 1 . 2 Storage 1 | . . 1 . . Processor 3 | . 1 2 . . Hackware . | . . . . . Protection 5 | . . 2 1 2 Artifact . | . . . . . Weapon 11 | 3 . 3 . 5 Energy Gun 1 | . . . . 1 Energy Cannon . | . . . . . Ballistic Gun 7 | 3 . 2 . 2 Ballistic Cannon . | . . . . . Launcher 2 | . . 1 . 1 Special Weapon 1 | . . . . 1 Impact Weapon . | . . . . . Slashing Weapon . | . . . . . Piercing Weapon . | . . . . . Special Melee Weapon . | . . . . . Unidentified Prototypes . | . . . . . Parts Lost 15 | . . 2 . 13 Power 1 | . . . . 1 Propulsion 4 | . . 1 . 3 Utility 6 | . . 1 . 5 Weapon 4 | . . . . 4 Highest Loss Streak 8 | . . 1 . 8 To Critical Strikes . | . . . . . Average Slot Usage (%) 90 | . 95 89 100 70 Engine 10 | . 14 11 11 6 Wheel 22 | . 28 21 22 15 Device 7 | . 10 5 11 6 Storage 8 | . . 10 11 9 Processor 11 | . 13 11 11 9 Protection 6 | . . 7 11 6 Ballistic Gun 21 | . 28 21 22 15 Naked Turns . | . . . . . Heaviest Build 45 | 7 12 37 39 45 Greatest Support 26 | 26 26 26 22 22 Greatest Overweight (x) 3 | . . 3 1 2 Average Overweight (x) . | . . . 1 1 Largest Inventory Capacity 15 | 5 5 15 15 15 Average Capacity 12 | 5 5 14 15 15 Most Carried 15 | 4 5 14 15 15 Average Carried 10 | 2 4 10 13 11 Final Capacity 15 | 5 5 15 15 15 Final Carried 15 | 4 5 12 15 7 Class Distribution -------------------- 100% | Mutant Dominant Class ---------------- Mutant | -10/Materials Mutant | -9/Materials Mutant | -9/Mines Mutant | -8/Materials Resources | -11 -10 -9 -9 -8 ----------- Run | Yrd Mat Mat Min Mat Matter Collected 667 | 260 72 279 19 37 Remotely . | . . . . . Salvage Created 718 | . 62 507 . 149 Parts 45 | . 7 33 . 5 Haulers Intercepted . | . . . . . Recyclers Shooed . | . . . . . Parts Field Recycled . | . . . . . Retrieved Matter . | . . . . . Parts Self-Destructed . | . . . . . Prevented . | . . . . . Kills | -11 -10 -9 -9 -8 ------- Run | Yrd Mat Mat Min Mat Combat Hostiles Destroyed 22 | . 3 12 . 7 Guns 19 | . 3 12 . 4 AOE 3 | . . . . 3 Classes Destroyed 7 | . 2 3 . 2 Worker 1 | . . 1 . . Watcher 2 | . 1 1 . . Swarmer 6 | . 3 3 . . Grunt 9 | . . 6 . 3 Brawler 1 | . . . . 1 Sentry 4 | . . 3 . 1 Specialist 2 | . . . . 2 Best Kill Streak 6 | . 3 4 . 6 Combat Bots Only 6 | . 3 3 . 6 Max Kills in Single Turn 2 | . 1 1 . 2 Gunslinging . | . . . . . Exploded 2 | . . . . 2 Melee . | . . . . . Uniques/NPCs Destroyed . | . . . . . Combat | -11 -10 -9 -9 -8 -------- Run | Yrd Mat Mat Min Mat Hostile Shots Fired 172 | . 17 44 . 111 Missed 44 | . 1 10 . 33 Damage Taken 1826 | . 134 363 . 1329 Core 438 | . 49 45 . 344 Absorbed by Shields . | . . . . . Redirected to Shielding 32 | . . . . 32 Regen/Repaired (Parts) 146 | . . 146 . . Core Remaining (%) 89 | 100 80 . 88 . Volleys Fired 64 | . 7 38 . 19 Largest 2 | . 2 2 . 2 Hottest 113 | . 40 40 . 113 Shots Fired 123 | . 14 73 . 36 Gun 111 | . 14 70 . 27 Cannon . | . . . . . Launcher 7 | . . 3 . 4 Special 5 | . . . . 5 Kinetic 108 | . 14 70 . 24 Thermal 5 | . . . . 5 Explosive 4 | . . . . 4 Electromagnetic 6 | . . 3 . 3 Robot Hit Streak 21 | . 3 11 . 21 Robot Miss Streak 5 | . 2 5 . 3 Penetration Max . | . . . . . Secondary Targets 3 | . 1 1 . 1 Max Gunslinging Chain 1 | . 1 1 . 1 Shots Hit Robots 83 | . 7 49 . 27 Core Hits 40 | . 4 23 . 13 Critical Kills . | . . . . . Critical Parts Destroyed 1 | . . 1 . . Critical Strikes 3 | . . 1 . 2 Burn 2 | . . . . 2 Destroy 1 | . . 1 . . Melee Attacks . | . . . . . Impact . | . . . . . Slashing . | . . . . . Piercing . | . . . . . Sneak Attacks . | . . . . . Combat Hostiles . | . . . . . Follow-up Attacks . | . . . . . Damage Inflicted 1601 | . 92 755 . 754 Guns 934 | . 92 587 . 255 Cannons . | . . . . . Explosions 624 | . . 168 . 456 Melee . | . . . . . Ramming . | . . . . . Kinetic 893 | . 92 587 . 214 Thermal 43 | . . . . 43 Explosive 456 | . . . . 456 Electromagnetic 209 | . . 168 . 41 Impact . | . . . . . Slashing . | . . . . . Piercing . | . . . . . Highest Corruption . | . . . . . Average Corruption . | . . . . . Corruption Purged . | . . . . . Corruption Blocked . | . . . . . Overload Shots . | . . . . . Overflow Damage 40 | . . . . 40 Projectiles . | . . . . . Explosions 40 | . . . . 40 Melee . | . . . . . Knockbacks . | . . . . . Impact . | . . . . . Kinetic . | . . . . . Secondary . | . . . . . Self-Inflicted Damage 135 | . . . . 135 Shots 4 | . . . . 4 Rammed . | . . . . . Targets Rammed . | . . . . . Kicked . | . . . . . Crushed . | . . . . . Highest Temperature 188 | . . 3 . 188 Average Temperature 56 | . . 3 . 62 Received Heat Transfer 447 | . 12 120 . 315 Siege Activations . | . . . . . Robots Corrupted . | . . . . . Combat Hostiles . | . . . . . Parts Fried . | . . . . . Impact Corruptions . | . . . . . Robots Melted . | . . . . . Combat Hostiles . | . . . . . Parts Melted . | . . . . . Heat Transferred 640 | . . . . 640 Parts Sabotaged . | . . . . . Parts Stolen . | . . . . . Parts Stripped . | . . . . . Power Chain Reactions . | . . . . . Alert | -11 -10 -9 -9 -8 ------- Run | Yrd Mat Mat Min Mat Peak Influence 352 | . 107 352 103 157 Initial 103 | . . 44 103 39 Average 142 | . 57 211 103 97 Maximum Alert Level 1 | . . 1 . . Low Security (%) 69 | 100 100 34 100 100 Level 1 30 | . . 65 . . Level 2 . | . . . . . Level 3 . | . . . . . Level 4 . | . . . . . Level 5 . | . . . . . High Security . | . . . . . Max Security . | . . . . . Squads Dispatched 5 | . . 1 . 4 Investigation . | . . . . . Extermination . | . . . . . Reinforcement 3 | . . 1 . 2 Assault . | . . . . . Garrison 2 | . . . . 2 Intercept . | . . . . . Searches Triggered . | . . . . . Construction Impeded . | . . . . . Haulers Reinforced . | . . . . . Active Scanning Responses . | . . . . . Cargo Convoy Interrupts . | . . . . . Stealth | -11 -10 -9 -9 -8 --------- Run | Yrd Mat Mat Min Mat Distress Signals 4 | . . 4 . . Communications Jammed . | . . . . . Distress Signals . | . . . . . Times Spotted 42 | . 6 24 . 12 Peak Tracking Total 7 | . 3 6 . 7 Tactical Retreats 4 | . 1 3 . . Traps | -11 -10 -9 -9 -8 ------- Run | Yrd Mat Mat Min Mat Traps Triggered . | . . . . . Indirectly . | . . . . . Trap Hack Attempts . | . . . . . Triggered . | . . . . . Disarmed . | . . . . . Reprogrammed . | . . . . . Reused . | . . . . . Traps Extracted . | . . . . . Installed . | . . . . . Triggered . | . . . . . Machines | -11 -10 -9 -9 -8 ---------- Run | Yrd Mat Mat Min Mat Machines Disabled 1 | . . . . 1 Max in Single Turn 1 | . . . . 1 Machines Repaired . | . . . . . Machines Dismantled . | . . . . . Machines Sabotaged . | . . . . . Overloaded Fab Kills . | . . . . . Hacking | -11 -10 -9 -9 -8 --------- Run | Yrd Mat Mat Min Mat Machines Accessed 5 | . 1 2 . 2 Terminals 1 | . . 1 . . Fabricators . | . . . . . Repair Stations 2 | . . 1 . 1 Recycling Units 1 | . 1 . . . Scanalyzers . | . . . . . Garrison Access 1 | . . . . 1 Total Hacks 15 | . 2 9 . 4 Successful 9 | . 2 7 . . Failed 6 | . . 2 . 4 Catastrophic 1 | . . . . 1 Database Lockouts . | . . . . . Manual . | . . . . . Terminals 3 | . . 3 . . Fabricators . | . . . . . Repair Stations 8 | . . 6 . 2 Recycling Units 2 | . 2 . . . Scanalyzers . | . . . . . Garrison Access 2 | . . . . 2 Terminal Hacks 2 | . . 2 . . Alert Level 1 | . . 1 . . Locate Traps 1 | . . 1 . . Fabricator Hacks . | . . . . . Repair Station Hacks 5 | . . 5 . . Scan Component 3 | . . 3 . . Repair 2 | . . 2 . . Recycling Unit Hacks 2 | . 2 . . . Report Inventory 2 | . 2 . . . Scanalyzer . | . . . . . Garrison Access Hacks . | . . . . . Unauthorized Hacks . | . . . . . Terminals . | . . . . . Fabricators . | . . . . . Repair Stations . | . . . . . Recycling Units . | . . . . . Scanalyzers . | . . . . . Garrison Access . | . . . . . Data Cores Recovered . | . . . . . Used . | . . . . . Hacking Detections 4 | . . 2 . 2 Full Trace Events 1 | . . . . 1 Feedback Events . | . . . . . Feedback Blocked . | . . . . . Robot Schematics Acquired . | . . . . . Robots Built . | . . . . . Authchips . | . . . . . Time . | . . . . . Total Robot Build Rating . | . . . . . Part Schematics Acquired . | . . . . . Parts Built . | . . . . . Authchips . | . . . . . Time . | . . . . . Total Part Build Rating . | . . . . . Parts Repaired 2 | . . 2 . . Time 52 | . . 52 . . Parts Recycled . | . . . . . Recycled Matter . | . . . . . Retrieved Matter . | . . . . . Retrieved Components . | . . . . . Parts Scanalyzed . | . . . . . Part Schematics Acquired . | . . . . . Parts Damaged . | . . . . . Bothacking | -11 -10 -9 -9 -8 ------------ Run | Yrd Mat Mat Min Mat Used RIF Installer . | . . . . . Robots Hacked . | . . . . . Non-combat . | . . . . . Combat . | . . . . . Robot Hacks Applied . | . . . . . Relay Couplers Released . | . . . . . Fabnet Peak Effective % . | . . . . . Robots Rewired . | . . . . . Allies Hacked . | . . . . . Hacks Repelled . | . . . . . Allies | -11 -10 -9 -9 -8 -------- Run | Yrd Mat Mat Min Mat Total Allies . | . . . . . Largest Group . | . . . . . Highest-Rated Group . | . . . . . Highest-Rated Ally . | . . . . . Total Orders . | . . . . . Ally Attacks . | . . . . . Total Damage . | . . . . . Kills . | . . . . . Allies Corrupted . | . . . . . Allies Melted . | . . . . . Intel | -11 -10 -9 -9 -8 ------- Run | Yrd Mat Mat Min Mat Robot Analysis Total . | . . . . . Derelict Logs Recovered 1 | . . . 1 . Drone Launches . | . . . . . Drone Recoveries . | . . . . . Exploration | -11 -10 -9 -9 -8 ------------- Run | Yrd Mat Mat Min Mat Turns Passed 1534 | 60 226 714 374 160 Spaces Moved 1138 | 54 206 450 351 77 Core 9 | 9 . . . . Treads . | . . . . . Legs . | . . . . . Wheels 1129 | 45 206 450 351 77 Hover . | . . . . . Flight . | . . . . . Fastest Speed 50 | 50 90 90 100 95 Average Speed 97 | 83 90 100 100 98 Slowest Speed 125 | 90 90 125 100 115 Overloaded Moves . | . . . . . Propulsion Burnouts . | . . . . . Robots Hopped . | . . . . . Cave-ins Triggered . | . . . . . Exploration Rate (%) 33 | 3 44 34 76 12 Regions Visited 4 Branch Regions 1 Pre-discovered Areas . | . . . . . Known Exits Taken 2 | . . 1 1 . Unknown Exits Taken 2 | 1 1 . . . Scrap Searched 1 | . . . 1 . Spaces Dug . | . . . . . Terrain Destroyed 11 | . . . . 11 Melee . | . . . . . Projectile . | . . . . . AOE 11 | . . . . 11 Terrain Rammed . | . . . . . Walls Destroyed . | . . . . . Machines Disabled . | . . . . . Actions | -11 -10 -9 -9 -8 --------- Run | Yrd Mat Mat Min Mat Total 1433 | 68 232 642 373 118 Wait 153 | . 10 114 19 10 Move 1134 | 53 205 449 350 77 Hop . | . . . . . Pick Up 37 | 9 4 21 3 . Fast Attach 3 | . 2 . . 1 Attach 21 | 5 . 8 . 8 Detach . | . . . . . Swap 10 | 1 1 4 1 3 Drop 11 | . 3 8 . . Fire 64 | . 7 38 . 19 Melee . | . . . . . Ram . | . . . . . Kick . | . . . . . Crush . | . . . . . Escape Stasis . | . . . . . Rewire . | . . . . . Trap . | . . . . . Miscellaneous . | . . . . . Route ------- -11/Scrapyard -10/Materials -9/Materials -9/Mines -8/Materials (discovered 2 exits: Fac / [*Sto]) History --------- Turn | Location | Event 17 | -11/Scrapyard | Discovered new exit (range 15) 61 | -11/Scrapyard | Entered Materials 253 | -10/Materials | Discovered new exit (range 12) 287 | -10/Materials | Entered another Materials area 287 | -9/Materials | Evolved 2 slots: Utility x2 331 | -9/Materials | Build established: Mutant 683 | -9/Materials | Discovered new exit (range 18) 735 | -9/Materials | Identified exit to Mines 842 | -9/Materials | Repaired Lgt. Armor Plating 870 | -9/Materials | Repaired Assault Rifle 1001 | -9/Materials | Entered Mines 1027 | -9/Mines | Received a Rocket Launcher from a helpful Derelict 1161 | -9/Mines | A weapon hastily lodged in a ceiling crevice suddenly fell to the ground 1185 | -9/Mines | Learned location of 1 exit from Materials 1341 | -9/Mines | Discovered new exit (range 11) 1357 | -9/Mines | Identified exit to Materials 1375 | -9/Mines | Entered Materials 1375 | -8/Materials | Evolved 2 slots: Utility x2 1376 | -8/Materials | Identified exit to Factory 1407 | -8/Materials | Garrison activated, responded to threat 1456 | -8/Materials | Lost 8 parts (1p1n4u2w) 1499 | -8/Materials | Discovered new exit (range 13) 1529 | -8/Materials | Core integrity fell below 50% 1535 | -8/Materials | Self-destructed Last Messages --------------- Acquired 12 matter. Acquired 25 matter. K-01 Serf cleans the Repair Station. K-01 Serf collects debris. Connecting with Repair Station... EXIT=FOUND O-16 Technician uses terminal to summon reinforcements. ALERT: Hostiles spotted, dispatching reinforcements to Terminal M008. O-16 Technician locks terminal. Assault Rifle destroyed. Critical hit (Burn: +37). G-47 Trooper destroyed. Knocked back. Wheel destroyed. Assault Rifle destroyed. Wheel destroyed. Signal Interpreter destroyed. Knocked back. Map ----- +----------------------------------------------------+ | ?????????????????????????????????????????????????? | | ??????????????????????????????? #????????????????? | | ?????????????????????????????? #????????????????? | | ?????????????????????????????? #????????????????? | | ???????????###########???????? #????????????????? | | ???????????# #???????? #????????????????? | | ???????????# """ #???????? #????????????????? | | ???????????# ""R" #??????? #????????????????? | | ???????????# "" " #??????? #????????????????? | | ???????????# #??????? #????????????????? | | ???????????# #??????? #????????????????? | | ???????????# #??????? #????????????????? | | ?#######???# #?????## ######???????????? | | ?# ##########+########## ]]#???????????? | | ?# ]]#???????????? | | ?# T **#???????????? | | ?# **#???????????? | | ?# ###+#############/### ==#???????????? | | ?## ##! #?# gr ## ## ==#???????????? | | ??# ## "" #?# """gH#? #??###???????????? | | ??# ## #?# """=%#? #????????????????? | | ??# ## % ### """ =#? #????????????????? | | ??# ## ## Y #? #????????????????? | | ??# ## " " ## """ #? #????????????????? | | ??# ## "G" ### """% #?? #????????????????? | | ??###### """ #?# """@ #?? ????????????????? | | ???????# % % #?# %#?? ????????????????? | | ???????## ##?##########??<[ ???????????????? | | ????????## ###?????????????? #???????????????? | | ?????????#####????????????????? ????????????????? | | ?????????????????????????????????????????????????? | | ?????????????????????????????????????????????????? | | ?????????????????????????????????????????????????? | | ?????????????????????????????????????????????????? | | ?????????????????????????????????????????????????? | | ?????????????????????????????????????????????????? | | ?????????????????????????????????????????????????? | | ?????????????????????????????????????????????????? | | ?????????????????????????????????????????????????? | | | | | | | | | | | | | | | | | | | | | | | +----------------------------------------------------+ Best States ------------- Heat Dissipation 31 Energy Generation 12 Energy Capacity 265 Matter Stores 300 Matter Capacity 300 Sight Range 18 Robot Scan Range 14 Terrain Scan Density 10 Armor Coverage 375 Core Shielding 20 Evasion (%) 42 Particle Charging 15 Salvage Targeting 1 Item Schematics ----------------- None Robot Schematics ------------------ None Fabricated ------------ Nothing Alien Tech Used ----------------- None Achievements -------------- None Challenges ------------ None Game ------ Seed NetworkStormMicroactuators Manual? 0 Play Time 00:35:03 Cumulative 13.7 hours Start 2024.04.22 @ 04:18:11 End 2024.04.26 @ 16:58:24 Sessions 4 Manual Loads 0 Difficulty Rogue Special Mode None Game No. 18 Rogue 18 Adventurer 0 Explorer 0 Win Type - Total 0 Types 0/0/0/0/0/0/0/0/0 Lore% 19 Gallery% 18 Achievement% 16 Wizard Run 0 Options --------- Layout 1 ASCII 0 Keyboard 0 Movement Mouse Keybinds 0 Fullscreen 2 Font 24/Crisp Map View 50x35 Zoom Use 0% Tactical HUD 0 Map Filters NONE Filters NONE Steam 1 RUN: 2f0bb535-41e5-49e7-b26e-94d4fcaf2ddb